Cogmind - Beta 16 @@@ ROGUE MODE // 2026.01.31 @ 22:30:29 Player: ILikeVoltron Result: Self-destructed Performance ------------- Evolutions (3) 1500 Regions Visited (5) 1000 Robots Destroyed (92) 460 Value Destroyed (2112) 2112 Prototype IDs (0) 0 Alien Tech Used (0) 0 Bonus (183) 183 TOTAL SCORE: 5255 Bonus ------- High Alert Combat Kills 2 Follower Combat Kills 181 Cogmind --------- Core Integrity 498/700 Matter 252/300 Energy 1/100 System Corruption 5% Temperature Cool (0) Movement Treading (211) Ox1 Location -7/Factory Parts ------- > --- POWER (2) -------- (None) > --- PROPULSION (4) --- Light Treads Armored Treads Advanced Treads > --- UTILITY (4) ------ High-capacity Storage Unit Advanced Targeting Computer Improved Medium Armor Plating Improved Shield Generator > --- WEAPON (3) ------- Heavy Ion Cannon Gauss Cannon > --- INVENTORY (20) --- Light Treads Armored Huge Wheel Armored Huge Wheel Improved Heat Sink Large Matter Pod (150) Improved Terrain Scanner Seismic Detector Kinecellerator Weapon Cycler Improved Medium Armor Plating Hacking Suite Shock Rifle Gauss Rifle Hammer Great Maul Peak State ------------ > --- POWER ------------ Improved Deuterium Engine > --- PROPULSION ------- Improved Treads Armored Treads Armored Treads Advanced Treads > --- UTILITY ---------- High-capacity Storage Unit Advanced Targeting Computer Matter Filter Improved Medium Armor Plating > --- WEAPON ----------- Lightning Gun Flak Gun Flak Gun > --- INVENTORY -------- Light Treads Light Treads Armored Huge Wheel Armored Huge Wheel Improved Heat Sink Large Matter Pod Improved Terrain Scanner Seismic Detector Improved Medium Armor Plating Hacking Suite Shock Rifle Gauss Cannon Rocket Launcher Hammer Great Maul [Rating: 43] Favorites ----------- Power Light Deuterium Engine Engine Light Deuterium Engine Propulsion Aluminum Leg Treads Improved Treads Leg Aluminum Leg Utility High-capacity Storage Unit Device Seismic Detector Storage High-capacity Storage Unit Processor Advanced Targeting Computer Protection Weapon Shielding Weapon Shock Rifle Energy Gun Shock Rifle Energy Cannon Heavy Ion Cannon Ballistic Gun Heavy Assault Rifle Ballistic Cannon Light Cannon Launcher Rocket Launcher Impact Weapon Great Maul Build | -11 -10 -9 -9 -8 -7 ------- Run | Yrd Mat Mat Min Mat Fac Slots Evolved 6 | . . 2 . 2 2 Power 1 | . . . . . 1 Propulsion 2 | . . 2 . . . Utility 2 | . . . . 1 1 Weapon 1 | . . . . 1 . Parts Attached 47 | 2 2 21 1 8 13 Power 4 | . . 3 . . 1 Engine 4 | . . 3 . . 1 Core . | . . . . . . Reactor . | . . . . . . Propulsion 11 | . . 7 . 1 3 Treads 8 | . . 4 . 1 3 Leg 3 | . . 3 . . . Wheel . | . . . . . . Hover . | . . . . . . Flight . | . . . . . . Utility 14 | 1 . 6 1 2 4 Device 7 | 1 . 1 1 2 2 Storage 2 | . . 2 . . . Processor 1 | . . . . . 1 Hackware . | . . . . . . Protection 4 | . . 3 . . 1 Artifact . | . . . . . . Weapon 18 | 1 2 5 . 5 5 Energy Gun 6 | . . 4 . 1 1 Energy Cannon 2 | . . . . 1 1 Ballistic Gun 4 | 1 . . . 1 2 Ballistic Cannon 3 | . 2 . . . 1 Launcher 1 | . . . . 1 . Special Weapon . | . . . . . . Impact Weapon 2 | . . 1 . 1 . Slashing Weapon . | . . . . . . Piercing Weapon . | . . . . . . Special Melee Weapon . | . . . . . . Unidentified Prototypes . | . . . . . . Parts Lost 23 | . . 7 . 4 12 Power 3 | . . 1 . . 2 Propulsion 6 | . . 2 . . 4 Utility 4 | . . 2 . . 2 Weapon 10 | . . 2 . 4 4 Highest Loss Streak 7 | . . 1 . 2 7 To Critical Strikes 1 | . . . . . 1 Average Backups 15 | 7 7 15 20 19 17 Power . | 1 1 . . . . Propulsion 1 | 3 2 . 2 2 4 Utility 9 | . 2 8 12 12 10 Weapon 4 | 1 1 6 6 4 3 Tool/Special . | . . . . . . Unused Backups 36 | 6 5 8 . 2 15 Power 3 | 1 . 2 . . . Propulsion 10 | 3 2 3 . . 2 Utility 16 | 1 . 2 . 2 11 Weapon 7 | 1 3 1 . . 2 Tool/Special . | . . . . . . Average Slot Usage (%) 97 | . 100 99 100 98 90 Engine 10 | . 14 11 11 9 9 Treads 18 | . . 8 44 36 28 Leg 18 | . 28 34 . . . Device 6 | . 14 . 11 13 9 Storage 9 | . 14 11 11 9 7 Protection 7 | . . 10 . 4 7 Energy Gun 13 | . . 18 22 18 4 Ballistic Gun 4 | . 16 . . 4 8 Ballistic Cannon 2 | . 11 2 . . . Launcher 1 | . . . . . 4 Peak Build Rating 43 | 8 8 21 20 29 43 Average Rating 21 | 6 7 17 20 26 36 On Entrance 15 | 6 8 8 20 20 28 Avg Prop Armor Cover (%) 8 | . . 8 . . . Naked Turns . | . . . . . . Heaviest Build 79 | 11 15 54 52 66 79 Greatest Support 86 | 20 20 86 86 86 86 Greatest Overweight (x) 1 | . . 1 . . 1 Average Overweight (x) . | . . . . . . Largest Inventory Capacity 20 | 8 8 20 20 20 20 Average Capacity 17 | 8 8 17 20 20 20 Most Carried 20 | 8 8 20 20 20 20 Average Carried 16 | 7 7 15 20 19 18 Final Capacity 20 | 8 8 20 20 20 20 Final Carried 20 | 8 8 20 20 18 17 Class Distribution -------------------- 70% | Mutant 13% | Tank 8% | Gunner 6% | Skirmisher Dominant Class ---------------- Mutant | -10/Materials Mutant | -9/Materials Mutant | -9/Mines Skirmisher | -8/Materials Gunner | -7/Factory Resources | -11 -10 -9 -9 -8 -7 ----------- Run | Yrd Mat Mat Min Mat Fac Matter Collected 1344 | 330 22 448 . 153 391 Remotely . | . . . . . . Salvage Created 2775 | 214 . 1561 . 589 411 Parts 201 | 17 . 94 . 47 43 Haulers Intercepted 4 | . . 3 . . 1 Recyclers Shooed . | . . . . . . Parts Field Recycled . | . . . . . . Retrieved Matter . | . . . . . . Parts Self-Destructed . | . . . . . . Prevented . | . . . . . . Parts Restored . | . . . . . . Kills | -11 -10 -9 -9 -8 -7 ------- Run | Yrd Mat Mat Min Mat Fac Combat Hostiles Destroyed 60 | . . 30 . 16 14 Guns 42 | . . 25 . 9 8 Cannons 5 | . . 3 . 2 . AOE 11 | . . . . 5 6 Classes Destroyed 13 | 3 . 6 . 1 3 Worker 13 | 2 . 1 . 4 6 Builder 2 | . . . . . 2 Tunneler 5 | 5 . . . . . Hauler 4 | . . 3 . . 1 Recycler 2 | 1 . . . 1 . Operator 1 | . . . . 1 . Watcher 5 | . . 5 . . . Swarmer 26 | . . 6 . 9 11 Grunt 20 | . . 13 . 7 . Brawler 2 | . . 2 . . . Sentry 9 | . . 9 . . . Hunter 2 | . . . . . 2 Programmer 1 | . . . . . 1 Best Kill Streak 7 | 4 . 6 . 5 7 Combat Bots Only 6 | . . 5 . 4 6 Max Kills in Single Turn 5 | 1 . 1 . 5 3 Gunslinging . | . . . . . . Exploded 2 | . . . . 2 2 Melee . | . . . . . . Uniques/NPCs Destroyed . | . . . . . . Combat | -11 -10 -9 -9 -8 -7 -------- Run | Yrd Mat Mat Min Mat Fac Hostile Shots Fired 391 | . 1 144 . 66 180 Missed 122 | . 1 43 . 22 56 Hits 269 | . . 101 . 44 124 Projectile 269 | . . 101 . 44 124 Critical Strikes 3 | . . 1 . . 2 Part Disruptions 1 | . . . . . 1 Damage Taken 3797 | . 38 1258 . 606 1895 Core 515 | . . 258 . 55 202 Absorbed by Shields 178 | . . . . 96 82 Redirected to Shielding 50 | . . 50 . . . Regen/Repaired (Parts) 15 | . . . . . 15 Core Remaining (%) 81 | 100 100 . 35 90 . Volleys Fired 206 | 30 1 99 . 37 39 Largest 3 | 2 2 2 . 3 3 Hottest 145 | 40 40 100 . 145 133 Shots Fired 436 | 60 2 197 . 80 97 Gun 385 | 60 2 175 . 69 79 Cannon 38 | . . 22 . 8 8 Launcher 13 | . . . . 3 10 Special . | . . . . . . Kinetic 175 | 60 2 22 . 29 62 Thermal 13 | . . . . 8 5 Explosive 13 | . . . . 3 10 Electromagnetic 235 | . . 175 . 40 20 Robot Hit Streak 11 | 11 . 10 . 9 10 Robot Miss Streak 21 | 8 2 7 . 4 21 Penetration Max . | . . . . . . Secondary Targets 5 | . . 3 . . 2 Max Gunslinging Chain 1 | . . 1 . . 1 Shots Hit Robots 242 | 38 . 106 . 40 58 Core Hits 164 | 15 . 49 . 28 72 Critical Kills . | . . . . . . Critical Parts Destroyed 1 | 1 . . . . . Critical Strikes 5 | 1 . 2 . . 2 Destroy 1 | 1 . . . . . Corrupt 4 | . . 2 . . 2 Melee Attacks 2 | . . 2 . . . Impact 2 | . . 2 . . . Slashing . | . . . . . . Piercing . | . . . . . . Sneak Attacks . | . . . . . . Combat Hostiles . | . . . . . . Follow-up Attacks . | . . . . . . Damage Inflicted 5500 | 309 . 2044 . 1450 1697 Guns 3356 | 309 . 1719 . 558 770 Cannons 459 | . . 162 . 143 154 Explosions 1660 | . . 163 . 749 748 Melee . | . . . . . . Ramming 25 | . . . . . 25 Kinetic 1379 | 309 . 162 . 210 698 Thermal 394 | . . 163 . 143 88 Explosive 1497 | . . . . 749 748 Electromagnetic 2205 | . . 1719 . 348 138 Impact . | . . . . . . Slashing . | . . . . . . Piercing . | . . . . . . Highest Corruption 5 | . . . . . 5 Average Corruption 2 | . . . . . 2 Corruption Purged . | . . . . . . Corruption Blocked . | . . . . . . Effects 7 | . . . . . 7 Message Errors 3 | . . . . . 3 Matter Fused 1 | . . . . . 1 Parts Rejected 1 | . . . . . 1 Data Loss (minor) 1 | . . . . . 1 Weapon Failures 1 | . . . . . 1 Overload Shots . | . . . . . . Overflow Damage 157 | . . 6 . 94 57 Projectiles . | . . . . . . Explosions 157 | . . 6 . 94 57 Melee . | . . . . . . Knockbacks . | . . . . . . Impact . | . . . . . . Kinetic . | . . . . . . Secondary . | . . . . . . Self-Inflicted Damage 258 | . . 35 . 129 94 Shots 6 | . . 1 . 2 3 Rammed 3 | . . . . . 3 Targets Rammed 3 | . . . . . 3 Kicked . | . . . . . . Crushed . | . . . . . . Highest Temperature 302 | . . 289 . 302 238 Average Temperature 83 | . . 79 . 87 90 Received Heat Transfer 656 | . . 450 . 163 43 Effects 5 | . . 2 . . 3 Interference 5 | . . 2 . . 3 Siege Activations . | . . . . . . Martial Activations . | . . . . . . Shielding Activations . | . . . . . . Robots Disrupted . | . . . . . . Combat Hostiles . | . . . . . . Robots Corrupted 2 | . . 2 . . . Combat Hostiles 2 | . . 2 . . . Parts Fried 8 | . . 8 . . . Impact Corruptions . | . . . . . . Robots Melted . | . . . . . . Combat Hostiles . | . . . . . . Parts Melted 1 | . . 1 . . . Heat Transferred 651 | . . 300 . 259 92 Parts Sabotaged . | . . . . . . Parts Stolen . | . . . . . . Parts Stripped . | . . . . . . Power Chain Reactions 6 | . . 6 . . . Alert | -11 -10 -9 -9 -8 -7 ------- Run | Yrd Mat Mat Min Mat Fac Maximum Alert Level 2 | . . 1 . 2 1 Low Security (%) 72 | 100 100 60 100 59 84 Level 1 26 | . . 39 . 36 15 Level 2 . | . . . . 4 . Level 3 . | . . . . . . Level 4 . | . . . . . . Level 5 . | . . . . . . High Security . | . . . . . . Max Security . | . . . . . . Peak Influence 447 | 10 7 304 117 447 243 Initial 196 | . . . 117 14 196 Average 136 | 3 . 166 80 141 153 Influence Increases 2259 | 40 12 911 . 782 514 Destroy 0b10 Robot/C 1300 | . . 600 . 420 280 Destroy 0b10 Robot/NC 160 | 40 . 45 . 30 45 Destroy Leader 308 | . . 176 . 80 52 Allied During Kill 47 | . . . . 47 . Successful Hack 36 | . 12 12 . 12 . Disable Machine 90 | . . 15 . 30 45 Destroy Structure 108 | . . 18 . 58 32 Lose Combat Pursuer 210 | . . 45 . 105 60 Influence Decreases 2067 | 40 12 609 265 388 753 Entered New Map 443 | . . . 185 23 235 Time Decay 1294 | 40 12 539 80 225 398 Lost Part 230 | . . 70 . 40 120 Lost Ally 100 | . . . . 100 . Squads Dispatched 14 | . 1 3 . 6 4 Investigation 4 | . . 1 . 2 1 Extermination 2 | . . . . . 2 Reinforcement 5 | . 1 2 . 1 1 Assault . | . . . . . . Garrison 3 | . . . . 3 . Intercept . | . . . . . . Searches Triggered . | . . . . . . Construction Impeded . | . . . . . . Haulers Reinforced . | . . . . . . Active Scanning Responses . | . . . . . . Cargo Convoy Interrupts 1 | . . . . . 1 Stealth | -11 -10 -9 -9 -8 -7 --------- Run | Yrd Mat Mat Min Mat Fac Distress Signals 4 | . . . . 4 . Communications Jammed . | . . . . . . Distress Signals . | . . . . . . Times Spotted 108 | . 2 43 . 32 31 Peak Tracking Total 12 | . 2 4 . 7 12 Tactical Retreats 7 | . . 2 . 3 2 Traps | -11 -10 -9 -9 -8 -7 ------- Run | Yrd Mat Mat Min Mat Fac Traps Triggered 2 | . 1 1 . . . Indirectly . | . . . . . . Trap Hack Attempts . | . . . . . . Triggered . | . . . . . . Disarmed . | . . . . . . Reprogrammed . | . . . . . . Reused . | . . . . . . Traps Extracted . | . . . . . . Installed . | . . . . . . Triggered . | . . . . . . Machines | -11 -10 -9 -9 -8 -7 ---------- Run | Yrd Mat Mat Min Mat Fac Machines Disabled 6 | . . 1 . 2 3 Max in Single Turn 1 | . . 1 . 1 1 Machines Repaired . | . . . . . . Machines Dismantled . | . . . . . . Machines Sabotaged . | . . . . . . Overloaded Fab Kills . | . . . . . . Hacking | -11 -10 -9 -9 -8 -7 --------- Run | Yrd Mat Mat Min Mat Fac Machines Accessed 18 | . 3 6 . 4 5 Terminals 12 | . 3 5 . 3 1 Fabricators 1 | . . . . . 1 Repair Stations 1 | . . . . . 1 Recycling Units . | . . . . . . Scanalyzers 3 | . . 1 . 1 1 Garrison Access 1 | . . . . . 1 Total Hacks 43 | . 5 12 . 13 13 Successful 19 | . 3 8 . 3 5 Failed 24 | . 2 4 . 10 8 Catastrophic 4 | . . 1 . 1 2 Database Lockouts . | . . . . . . Manual 3 | . . . . 2 1 Terminals 24 | . 5 9 . 9 1 Fabricators 2 | . . . . . 2 Repair Stations 5 | . . . . . 5 Recycling Units . | . . . . . . Scanalyzers 11 | . . 3 . 4 4 Garrison Access 1 | . . . . . 1 Terminal Hacks 10 | . 3 5 . 2 . Branch Access Points 1 | . . 1 . . . Scanalyzer Index 1 | . 1 . . . . Alert Level 3 | . . 2 . 1 . Maintenance Status 1 | . 1 . . . . Hauler Manifests 1 | . . 1 . . . Zone Layout 3 | . 1 1 . 1 . Fabricator Hacks . | . . . . . . Repair Station Hacks 3 | . . . . . 3 Scan Component 2 | . . . . . 2 Repair 1 | . . . . . 1 Recycling Unit Hacks . | . . . . . . Scanalyzer 6 | . . 3 . 1 2 Retrieve Study 6 | . . 3 . 1 2 Garrison Access Hacks . | . . . . . . Unauthorized Hacks . | . . . . . . Terminals . | . . . . . . Fabricators . | . . . . . . Repair Stations . | . . . . . . Recycling Units . | . . . . . . Scanalyzers . | . . . . . . Garrison Access . | . . . . . . Data Cores Recovered 1 | . 1 . . . . Used 1 | . 1 . . . . Hacking Detections 15 | . 2 4 . 4 5 Full Trace Events 4 | . . . . 3 1 Feedback Events . | . . . . . . Feedback Blocked . | . . . . . . Robot Schematics Acquired . | . . . . . . Robots Built . | . . . . . . Authchips . | . . . . . . Time . | . . . . . . Total Robot Build Rating . | . . . . . . Part Schematics Acquired . | . . . . . . Parts Built . | . . . . . . Authchips . | . . . . . . Time . | . . . . . . Total Part Build Rating . | . . . . . . Part Studies Acquired 6 | . . 3 . 1 2 Parts Repaired 1 | . . . . . 1 Time 44 | . . . . . 44 Parts Recycled . | . . . . . . Recycled Matter . | . . . . . . Retrieved Matter . | . . . . . . Retrieved Components . | . . . . . . Parts Scanalyzed . | . . . . . . Part Schematics Acquired . | . . . . . . Parts Damaged . | . . . . . . Bothacking | -11 -10 -9 -9 -8 -7 ------------ Run | Yrd Mat Mat Min Mat Fac Used RIF Installer . | . . . . . . Robots Hacked . | . . . . . . Non-combat . | . . . . . . Combat . | . . . . . . Robot Hacks Applied . | . . . . . . Relay Couplers Released . | . . . . . . Fabnet Peak Effective % . | . . . . . . Robots Rewired . | . . . . . . Allies Hacked . | . . . . . . Hacks Repelled . | . . . . . . Allies | -11 -10 -9 -9 -8 -7 -------- Run | Yrd Mat Mat Min Mat Fac Total Allies 5 | . . . 5 . . Largest Group 5 | . . . 5 5 . Highest-Rated Group 82 | . . . 82 82 . Highest-Rated Ally 31 | . . . 31 31 . Total Orders . | . . . . . . Ally Attacks 43 | . . . . 43 . Total Damage 451 | . . . . 451 . Kills 5 | . . . . 5 . Allies Corrupted . | . . . . . . Allies Melted . | . . . . . . Intel | -11 -10 -9 -9 -8 -7 ------- Run | Yrd Mat Mat Min Mat Fac Active Infowar (turns) 849 | 34 318 54 152 291 . Terrain 290 | . . . . 290 . Seismic 847 | 34 318 54 152 289 . Robot Analysis Total . | . . . . . . Derelict Logs Recovered 1 | . . . 1 . . Drone Launches . | . . . . . . Drone Recoveries . | . . . . . . Exploration | -11 -10 -9 -9 -8 -7 ------------- Run | Yrd Mat Mat Min Mat Fac Turns Passed 3976 | 170 318 1815 162 560 951 Spaces Moved 1969 | 53 249 884 101 255 427 Core . | . . . . . . Treads 977 | . . 194 101 255 427 Legs 992 | 53 249 690 . . . Wheels . | . . . . . . Hover . | . . . . . . Flight . | . . . . . . Fastest Speed 120 | 120 120 120 160 160 161 Average Speed 157 | 120 120 162 160 160 171 Slowest Speed 241 | 120 120 240 160 162 241 Overloaded Moves . | . . . . . . Propulsion Burnouts . | . . . . . . Robots Hopped . | . . . . . . Potential Cave-ins . | . . . . . . Cave-ins Triggered . | . . . . . . Exploration Rate (%) 35 | 4 56 82 25 31 14 Regions Visited 5 Branch Regions 1 Pre-discovered Areas . | . . . . . . Known Exits Taken 1 | . . 1 . . . Unknown Exits Taken 4 | 1 1 . 1 1 . Scrap Searched . | . . . . . . Spaces Dug 1 | . . 1 . . . Terrain Destroyed 107 | . . 17 . 54 36 Melee 1 | . . 1 . . . Projectile 1 | . . . . . 1 AOE 105 | . . 16 . 54 35 Terrain Rammed . | . . . . . . Walls Destroyed . | . . . . . . Machines Disabled . | . . . . . . Actions | -11 -10 -9 -9 -8 -7 --------- Run | Yrd Mat Mat Min Mat Fac Total 2448 | 111 269 1061 101 342 564 Wait 133 | 23 6 11 . 29 64 Move 1964 | 52 248 883 100 254 427 Hop . | . . . . . . Pick Up 53 | 3 5 28 . 8 9 Fast Attach 12 | 1 2 3 . . 6 Attach 20 | . . 7 . 6 7 Detach . | . . . . . . Swap 20 | 1 . 13 1 3 2 Drop 35 | 1 7 15 . 5 7 Fire 206 | 30 1 99 . 37 39 Melee 2 | . . 2 . . . Ram . | . . . . . . Kick . | . . . . . . Crush 3 | . . . . . 3 Escape Stasis . | . . . . . . Rewire . | . . . . . . Trap . | . . . . . . Miscellaneous . | . . . . . . Route ------- -11/Scrapyard -10/Materials (discovered 2 exits: *Mat / [*Min]) -9/Materials -9/Mines -8/Materials -7/Factory History --------- Turn | Location | Event 26 | -11/Scrapyard | Discovered new exit (range 3) 171 | -11/Scrapyard | Entered Materials 172 | -10/Materials | Met a group of wandering Federalists 246 | -10/Materials | Discovered new exit (range 16) 309 | -10/Materials | Build established: Mutant 475 | -10/Materials | Discovered new exit (range 12) 489 | -10/Materials | Entered another Materials area 489 | -9/Materials | Evolved 2 slots: Propulsion x2 596 | -9/Materials | Identified exit to Mines 1737 | -9/Materials | Core integrity fell below 50% 2304 | -9/Materials | Entered Mines 2362 | -9/Mines | Assisted by bots powering up and referring to "LRC-V3" 2375 | -9/Mines | Discovered new exit (range 9) 2466 | -9/Mines | Entered Materials 2466 | -8/Materials | Accompanied by 5 allies 2466 | -8/Materials | Evolved 2 slots: Utility x1, Weapon x1 2471 | -8/Materials | Led the pair of lost Derelicts to an unsafe place 2724 | -8/Materials | Garrison activated, responded to threat 2792 | -8/Materials | Lost 4 allies 2994 | -8/Materials | Discovered new exit (range 14) 3026 | -8/Materials | Entered Factory 3026 | -7/Factory | Evolved 2 slots: Power x1, Utility x1 3346 | -7/Factory | Repaired Broken Hvy. Assault Rifle+ 3810 | -7/Factory | Lost 7 parts (3n2u2w) 3896 | -7/Factory | Cargo convoy interrupted 3933 | -7/Factory | Lost 3 parts (1p1n1w) 3977 | -7/Factory | Self-destructed Last Messages --------------- 03896_ C-45 Heavy ARC bursts open, deploying its payload. 03896_ H-55 Commando unfolds itself. 03899_ Imp. Deuterium Engine destroyed. 03902_ Slug penetrates Wall. 03902_ Arm. Treads destroyed. 03904_ K-01 Serf collects debris. 03905_ U-05 Engineer builds a Wall. 03905_ Penetrated by Slug. 03905_ U-05 Engineer destroyed. 03907_ U-05 Engineer builds a Wall. 03908_ K-01 Serf collects debris. 03908_ U-05 Engineer builds a Wall. 03916_ Acquired Kinecellerator. 03920_ Slug penetrates Wall. 03923_ Acquired Weapon Cycler. 03925_ Slug penetrates Wall. 03949_ ALERT: Potential suspicious activity detected, Programmers report to Factory Zone 1H. 03951_ Flak Gun destroyed. 03960_ Terminal disabled. 03975_ Slug penetrates Wall. Map ----- +----------------------------------------------------+ | ?????????????????????????????????????????????????? | | ?????????????????????????????????????????????????? | | ?????????????????????????????????????????????????? | | ?????????????????????????????????????????????????? | | ?????????????????????????????????????????????????? | | ?????????????????????????????????????????????????? | | ?????????????????????????????????????????????????? | | ?????????????????????????????????????????????????? | | ??????????????????????????????##T ???????????????? | | ????????????????????????????? ?????????????? | | ????????????????????????????? #????????????? | | ??????????????????????????### #????????????? | | ?????????????????????????? +????????????? | | ?????????????????????????? #????????????? | | ?????????????????????????# #????????????? | | ?????????????????????????+ #????????????? | | ?????????????????????????# #????????????? | | ?????????????????????????# !! ##+#?????????? | | ???????????????#######?### ! "T ?????????? | | ????? ####### #?#% ????????? | | ????? "" ### ?????????? | | ???? T ####????????????????? | | ?????# ^ !### #???????????????????? | | ?????????####### #?# p #???????????????????? | | ??????????????####+#######p###???????????????????? | | ??????????????# ##@ #???????????????????? | | ??????????????# """ ## #???????????????????? | | ??????????????# """ ## #???????????????????? | | ??????????????# """ ## #???????????????????? | | ??????????????# ## #???????????????????? | | ??????????????# """ ## [ #???????????????????? | | ??????????????# """ ## #???????????????????? | | ??????? ????# """ ## #???????????????????? | | ????#+#????# ## #???????????????????? | | ????# #??###################??????????????????? | | ##### #### %! "#??????????????????? | | + !! #???????????????????? | | # / /%" ????????????? | | # #####???????????????? | | # % #???????????????????? | | # "" "" #???????????????????? | | # """"" S"" #???????????????????? | | ? # """"" "" #???????????????????? | | ##### # #???????????????????? | | # ####+##################??????????????? | | # *= ?????????????? | | #[ % %!!=[ ?????????????? | | """ + """" ?????????????? | | """=# "" """" ! ?????????????? | | """ # " """" ##??????????????? | +----------------------------------------------------+ Best States ------------- Heat Dissipation 38 Energy Generation 25 Energy Capacity 330 Matter Stores 300 Matter Capacity 300 Sight Range 16 Terrain Scan Range 16 Terrain Scan Density 10 Armor Coverage 225 Weapon Shielding 33 Evasion (%) 55 Targeting Accuracy 8 Recoil Reduction 4 Matter Filtering 30 Item Schematics ----------------- None Robot Schematics ------------------ None Fabricated ------------ Nothing Repaired ---------- Hvy. Assault Rifle | 86% | -7/Factory | Broken Studied --------- Hammer | -9/Materials | Hacked Rocket Launcher | -9/Materials | Hacked Hvy. Assault Rifle | -9/Materials | Hacked Lgt. Treads | -8/Materials | Hacked Arm. Huge Wheel | -7/Factory | Hacked Adv. Treads | -7/Factory | Hacked Alien Tech Used ----------------- None Achievements -------------- None Challenges ------------ None Game ------ Seed NavigationMiniPower Manual? 0 Play Time 00:40:07 Cumulative 186.8 hours Start 2026.01.31 @ 21:53:06 End 2026.01.31 @ 22:30:29 Sessions 1 Manual Loads 0 Difficulty Rogue Special Mode None Game No. 309 Rogue 305 Adventurer 0 Explorer 4 Win Type - Total 0 Types 0/0/0/0/0/0/0/0/0/0 Lore% 27 Gallery% 44 Achievement% 30 Wizard Run 0 Options --------- Layout 0 ASCII 0 Keyboard 1 Movement Arrows Keybinds 0 Fullscreen 1 Font 24/Smallcaps Map View 183x50 Zoom Use 0% Tactical HUD 1 Map Filters NONE Filters NONE Steam 1 RUN: f2330fc3-8d90-4655-9a13-37a74fc4997d